bitfinex/quotes_BTCUSD_20260110
["timestamp","ask_amount","ask_price","bid_price","bid_amount"]
[1768021691096,0.03,90472.0,90462.0,0.01105436]
[1768021691297,0.03,90472.0,90463.0,0.01105424]
[1768021692736,0.03,90472.0,90464.0,0.01105412]
[1768021693232,0.03,90472.0,90463.0,0.01105424]
[1768021694130,0.03,90472.0,90462.0,0.01105436]
[1768021696314,0.03,90472.0,90463.0,0.01105424]
[1768021697095,0.03,90472.0,90462.0,0.01105436]
[1768021697613,0.03,90472.0,90463.0,0.01105424]
[1768021698162,0.03,90466.0,90463.0,0.01105424]
[1768021698338,0.03,90466.0,90462.0,0.01105436]
[1768021699216,0.03,90465.0,90461.0,0.04564673]
[1768021699644,0.03,90465.0,90462.0,0.01105436]
[1768021699824,0.03,90465.0,90462.0,0.05666104]
[1768021700219,0.03,90464.0,90463.0,0.01105424]
[1768021701301,0.03,90463.0,90462.0,0.05666104]
[1768021702179,0.03,90463.0,90462.0,0.04560668]
[1768021702401,0.03,90474.0,90463.0,0.01105424]
[1768021703205,0.03,90474.0,90462.0,0.01105436]
[1768021703699,0.03,90474.0,90463.0,0.01105424]
[1768021704788,0.03,90474.0,90464.0,0.01105412]
[1768021705851,0.03,90474.0,90463.0,0.01105424]
[1768021707173,0.03,90474.0,90464.0,0.01105412]
[1768021709785,0.05212,90473.0,90467.0,0.05666043]
[1768021709993,0.02202987,90473.0,90467.0,0.04560668]
[1768021710513,0.02202987,90473.0,90462.0,0.05527168]
[1768021710514,0.02202987,90473.0,90462.0,0.04560668]
[1768021710716,0.03,90472.0,90463.0,0.05666092]
[1768021712208,0.03,90472.0,90464.0,0.01105412]
[1768021712746,0.03,90472.0,90468.0,0.01105363]
[1768021712987,0.03,90472.0,90466.0,0.05526936]
[1768021713167,0.03,90476.0,90468.0,0.05666031]
[1768021713939,0.0001511,90484.0,90470.0,0.06003247]
[1768021714134,0.0301511,90484.0,90471.0,0.04897909]
[1768021714339,0.0301511,90484.0,90471.0,0.05996421]
[1768021714925,0.0301511,90484.0,90472.0,0.01105314]
[1768021715160,0.0301511,90484.0,90471.0,0.05996421]
[1768021715161,0.05212,90483.0,90471.0,0.05996421]
[1768021715365,0.05212,90483.0,90472.0,0.01105314]
[1768021715947,0.05212,90483.0,90471.0,0.05996421]
[1768021717530,0.03,90482.0,90471.0,0.05996421]
[1768021717731,0.03,90482.0,90474.0,0.01105289]
[1768021718591,0.03,90481.0,90474.0,0.01105289]
[1768021718994,0.03,90481.0,90474.0,0.01098475]
[1768021719403,0.03,90481.0,90475.0,0.01105277]
[1768021719613,0.03,90480.0,90475.0,0.01105277]
[1768021720668,0.03,90479.0,90474.0,0.01098475]
[1768021720921,0.03,90479.0,90474.0,0.01105289]
[1768021721082,0.03,90479.0,90472.0,0.05526561]
[1768021721083,0.03,90479.0,90472.0,0.01105314]
[1768021721285,0.03,90479.0,90474.0,0.01105289]
[1768021721690,0.0001511,90484.0,90471.0,0.05996421]
[1768021721907,0.0001511,90484.0,90473.0,0.01105302]
[1768021724210,0.0001511,90484.0,90474.0,0.01105289]
[1768021724410,0.0001511,90484.0,90476.0,0.04897909]
[1768021724626,6.097e-05,90484.0,90476.0,0.04897909]
[1768021725246,0.03,90491.0,90482.0,0.01105192]
[1768021725495,0.03,90487.0,90483.0,0.01105179]
[1768021725688,0.02212,90490.0,90483.0,0.01105179]
[1768021726197,0.04977661,90497.0,90483.0,0.01105179]
[1768021726198,0.02212,90489.0,90484.0,0.01105167]
[1768021726456,0.02212,90489.0,90483.0,0.06631067]
[1768021726457,0.03,90488.0,90483.0,0.01105179]
[1768021726854,0.03,90488.0,90484.0,0.01105167]
[1768021729138,0.04977661,90497.0,90484.0,0.01105167]
[1768021729377,0.03,90487.0,90482.0,0.01105192]
[1768021729508,0.02212,90488.0,90483.0,0.01105179]
[1768021730226,0.02212,90488.0,90484.0,0.01105167]
[1768021730412,0.02212,90488.0,90482.0,0.01105192]
[1768021730747,0.02212,90488.0,90483.0,0.01105179]
[1768021730910,0.02212,90488.0,90482.0,0.01105192]
[1768021732137,0.02212,90488.0,90484.0,0.01105167]
[1768021732791,0.02212,90488.0,90482.0,0.01105192]
[1768021732942,0.02212,90488.0,90479.0,0.06631366]
[1768021733138,0.02212,90488.0,90482.0,0.01105192]
[1768021733368,0.02212,90488.0,90483.0,0.01105179]
[1768021734111,0.02212,90488.0,90482.0,0.01105192]
[1768021734539,0.02212,90488.0,90483.0,0.01105179]
[1768021734897,0.02212,90488.0,90482.0,0.01105192]
[1768021736771,0.02212,90488.0,90482.0,0.01100721]
[1768021736981,0.02212,90488.0,90481.0,0.01105204]
[1768021737318,0.02212,90488.0,90482.0,0.01105192]
[1768021738023,0.02212,90488.0,90481.0,0.01105204]
[1768021739379,0.02212,90488.0,90482.0,0.01105192]
[1768021739586,0.02212,90488.0,90483.0,0.01105179]
[1768021740670,0.02212,90488.0,90484.0,0.01105167]
[1768021740866,0.02212,90488.0,90483.0,0.01105179]
[1768021741603,0.02212,90488.0,90482.0,0.01105192]
[1768021741785,0.02212,90488.0,90481.0,0.01105204]
[1768021741986,0.02212,90488.0,90482.0,0.01105192]
[1768021742338,0.02212,90488.0,90483.0,0.01105179]
[1768021742451,0.0608267,90497.0,90483.0,0.01105179]
[1768021742655,0.0608267,90497.0,90481.0,0.01105204]
[1768021742656,0.03,90491.0,90481.0,0.01105204]
[1768021743303,0.03,90491.0,90477.0,0.06003162]
[1768021743508,0.04105082,90491.0,90480.0,0.33534838]
[1768021743703,0.03,90491.0,90480.0,0.33534838]
[1768021744239,0.0777236,90491.0,90480.0,0.33534838]
[1768021744973,0.04768355,90491.0,90480.0,0.33534838]
[1768021747607,0.04768355,90491.0,90481.0,0.01105204]
[1768021747811,0.04768355,90491.0,90480.0,0.33534838]
[1768021748806,0.05873437,90491.0,90480.0,0.33534838]
[1768021749147,0.04768355,90491.0,90480.0,0.33534838]
[1768021749370,0.04768355,90491.0,90480.0,0.34640054]
[1768021749897,0.04768355,90491.0,90480.0,0.36319285]
[1768021750242,0.04768355,90491.0,90481.0,0.01105204]
[1768021750501,0.04768355,90491.0,90482.0,0.01105192]
[1768021750660,0.04768355,90491.0,90483.0,0.01105179]
[1768021750906,0.04768355,90491.0,90483.0,0.01098365]
[1768021751111,0.04768355,90491.0,90482.0,0.01105192]
[1768021751343,0.04768355,90491.0,90483.0,0.01105179]
[1768021753329,0.04768355,90491.0,90482.0,0.01105192]
[1768021753529,0.04768355,90491.0,90483.0,0.01105179]
[1768021753937,0.04768355,90491.0,90481.0,0.01105204]
[1768021756636,0.04768355,90491.0,90481.0,0.01100732]
[1768021757101,0.04768355,90491.0,90482.0,0.01105192]
[1768021759515,0.04768355,90491.0,90480.0,0.36319285]
[1768021760221,0.04768355,90491.0,90481.0,0.01105204]
[1768021761329,0.04768355,90491.0,90480.0,0.36319285]
[1768021762129,0.04768355,90491.0,90480.0,0.35214069]
[1768021763472,0.04768355,90491.0,90480.0,0.36319285]
[1768021764176,0.04768355,90491.0,90480.0,0.35214069]
[1768021764383,0.04768355,90491.0,90481.0,0.01105204]
[1768021764563,0.04768355,90491.0,90480.0,0.36319285]
[1768021764968,0.04768355,90491.0,90481.0,0.01105204]
[1768021768126,0.03,90488.0,90482.0,0.01105192]
[1768021768995,0.03,90488.0,90482.0,0.0110072]
[1768021769116,0.03,90488.0,90481.0,0.01105204]
[1768021769474,0.03,90488.0,90480.0,0.36319285]
[1768021770297,0.03,90488.0,90481.0,0.01105204]
[1768021770498,0.03,90486.0,90481.0,0.01105204]
[1768021770703,0.02212,90488.0,90481.0,0.01105204]
[1768021771101,0.0477236,90489.0,90481.0,0.01105204]
[1768021771289,0.0698436,90487.0,90482.0,0.01105192]
[1768021771681,0.0698436,90487.0,90481.0,0.01105204]
[1768021772158,0.0698436,90487.0,90482.0,0.01105192]
[1768021772344,0.0698436,90487.0,90481.0,0.01105204]
[1768021772574,0.0698436,90487.0,90482.0,0.01105192]
[1768021772863,0.0698436,90487.0,90481.0,0.01105204]
[1768021773024,0.06975347,90487.0,90481.0,0.01105204]
[1768021773570,0.06975347,90487.0,90482.0,0.01105192]
[1768021773746,0.06975347,90487.0,90481.0,0.01105204]
[1768021774571,0.06975347,90487.0,90480.0,0.01105216]
[1768021774939,0.06975347,90487.0,90479.0,0.01105228]
[1768021775167,0.06975347,90487.0,90478.0,0.01105241]
[1768021775366,0.06975347,90487.0,90479.0,0.01105228]
[1768021775586,0.06975347,90487.0,90478.0,0.01105241]
[1768021775802,0.06975347,90487.0,90479.0,0.01105228]
[1768021775987,0.06975347,90487.0,90478.0,0.01105241]
[1768021776173,0.06975347,90487.0,90479.0,0.01105228]
[1768021776372,0.06975347,90487.0,90482.0,0.01105192]
[1768021778037,0.06975347,90487.0,90483.0,0.01105179]
[1768021778241,0.06975347,90487.0,90482.0,0.01105192]
[1768021778411,0.06975347,90487.0,90483.0,0.01105179]
[1768021779304,0.02202987,90487.0,90483.0,0.01105179]
[1768021780050,0.02202987,90487.0,90484.0,0.01105167]
[1768021780946,0.02202987,90487.0,90483.0,0.01105179]
[1768021781747,0.02202987,90487.0,90484.0,0.01105167]
[1768021781888,0.02202987,90487.0,90484.0,0.01100695]
[1768021782644,0.02202987,90487.0,90483.0,0.01105179]
[1768021783105,0.02202987,90487.0,90484.0,0.01105167]
[1768021783304,0.02202987,90487.0,90483.0,0.01098365]
[1768021783510,0.02202987,90487.0,90484.0,0.01105167]
[1768021784046,0.02202987,90487.0,90482.0,0.01105192]
[1768021784943,0.02202987,90487.0,90483.0,0.01105179]
[1768021785558,0.02202987,90487.0,90482.0,0.01105192]
[1768021786859,0.02202987,90487.0,90483.0,0.01105179]
[1768021792350,0.02202987,90487.0,90483.0,0.01098365]
[1768021792693,0.02202987,90487.0,90483.0,0.01093893]
[1768021792966,0.02202987,90487.0,90484.0,0.01105167]
[1768021793321,0.02202987,90487.0,90483.0,0.01093893]
[1768021793754,0.03,90486.0,90484.0,0.01105167]
[1768021796034,0.03,90486.0,90484.0,0.01100695]
[1768021797029,0.0001511,90493.0,90486.0,0.01105143]
[1768021797259,0.02212,90490.0,90485.0,0.01105155]
[1768021797849,0.02212,90490.0,90486.0,0.01105143]
[1768021798085,0.02212,90490.0,90487.0,0.01105131]
[1768021798287,0.04521285,90493.0,90487.0,0.01105131]
[1768021798520,0.02212,90489.0,90486.0,0.01105143]
[1768021798739,0.02202986,90489.0,90484.0,0.01100695]
[1768021799571,0.02193971,90489.0,90484.0,0.01100695]
[1768021800171,0.02193971,90489.0,90485.0,0.01105155]
[1768021800377,0.02193971,90489.0,90484.0,0.01100695]
[1768021800578,0.02193971,90489.0,90486.0,0.01105143]
[1768021801212,0.02212,90492.0,90487.0,0.01105131]
[1768021801615,3.0,90500.0,90486.0,0.01105143]
[1768021801616,3.0,90500.0,90492.0,0.0110507]
[1768021801801,0.02212,90497.0,90494.0,0.01105045]
[1768021802221,0.02212,90497.0,90493.0,0.01105057]
[1768021802438,0.02212,90497.0,90489.0,0.06630639]
[1768021802641,0.02212,90497.0,90494.0,0.01105045]
[1768021803300,3.0,90500.0,90498.0,0.05524983]
[1768021803720,3.0,90500.0,90497.0,0.01105009]
[1768021803938,3.0,90500.0,90497.0,0.06629996]
[1768021804305,3.0,90500.0,90496.0,0.01105021]
[1768021804503,3.0,90500.0,90497.0,0.01105009]
[1768021804707,3.0,90500.0,90499.0,0.05524922]
[1768021804949,3.0,90500.0,90497.0,0.06630005]
[1768021804950,2.99995823,90500.0,90497.0,0.06630005]
[1768021805151,2.99411684,90500.0,90497.0,0.01105009]
[1768021805350,2.99402665,90500.0,90497.0,0.01105009]
[1768021805770,2.99402665,90500.0,90498.0,0.05524928]
[1768021805911,2.65922665,90500.0,90499.0,0.05524922]
[1768021806116,0.81786707,90500.0,90499.0,0.10184534]
[1768021806355,0.46026509,90500.0,90497.0,0.06629934]
[1768021806668,0.38301404,90500.0,90498.0,0.05524964]
[1768021806885,0.33494723,90500.0,90498.0,0.05524964]
[1768021807083,0.33494723,90500.0,90497.0,0.01105009]
[1768021807084,0.27786946,90500.0,90497.0,0.01105009]
[1768021807240,0.22014715,90500.0,90497.0,0.0663003]
[1768021807502,0.15964715,90500.0,90497.0,0.01105009]
[1768021807702,0.11567036,90500.0,90497.0,0.01105009]
[1768021807882,0.07167036,90500.0,90497.0,0.01105009]
[1768021808083,0.03295423,90500.0,90497.0,0.01105009]
[1768021808283,0.03,90512.0,90500.0,0.04659612]
[1768021808489,0.01724171,90510.0,90500.0,0.04659612]
[1768021809427,0.03,90509.0,90500.0,0.04659612]
[1768021810147,0.03,90509.0,90495.0,0.04659612]
[1768021811129,0.03,90509.0,90495.0,0.05764645]
[1768021811332,0.03,90509.0,90496.0,0.01105021]
[1768021812522,0.03,90509.0,90495.0,0.04659612]
[1768021812730,0.03,90509.0,90495.0,0.05764645]
[1768021812928,0.03,90509.0,90496.0,0.01105021]
[1768021813624,0.03,90509.0,90495.0,0.05764645]
[1768021813789,0.03,90509.0,90495.0,0.04659612]
[1768021813992,0.04104862,90509.0,90495.0,0.04659612]
[1768021816031,0.03,90507.0,90495.0,0.04659612]
[1768021817048,0.03,90509.0,90495.0,0.04659612]
[1768021822175,0.03,90509.0,90495.0,0.05764645]
[1768021822394,0.03,90509.0,90495.0,0.04659612]
[1768021823300,0.03,90509.0,90499.0,0.35214494]
[1768021824503,0.03,90509.0,90495.0,0.04659612]
[1768021825218,0.03,90509.0,90495.0,0.05764645]
[1768021825425,0.03,90509.0,90495.0,0.04659612]
[1768021826317,0.03,90509.0,90495.0,0.05764645]
[1768021826488,0.03,90509.0,90495.0,0.04659612]
[1768021827346,0.03,90509.0,90495.0,0.05764645]
[1768021827574,0.03,90509.0,90495.0,0.04659612]
[1768021828864,0.03,90509.0,90495.0,0.05764645]
[1768021829203,0.03,90509.0,90495.0,0.01105033]
[1768021829409,0.03,90509.0,90497.0,0.04659612]
[1768021831033,0.03,90509.0,90497.0,0.05764621]
[1768021832384,0.03,90509.0,90500.0,0.04659612]
[1768021848401,0.03,90509.0,90501.0,0.0110496]
[1768021848556,0.01724171,90510.0,90509.0,4.118e-05]
[1768021850822,0.01724171,90510.0,90509.0,1.8e-07]
[1768021853293,0.01759449,90510.0,90509.0,1.8e-07]
[1768021856805,0.01750432,90510.0,90509.0,1.8e-07]
[1768021878801,0.01739432,90510.0,90509.0,1.8e-07]
[1768021880614,0.01734593,90510.0,90509.0,1.8e-07]
[1768021889997,0.05212,90510.0,90509.0,1.8e-07]
[1768021895433,0.052079,90510.0,90509.0,1.8e-07]
[1768021899067,0.05198882,90510.0,90509.0,1.8e-07]
[1768021902389,0.05189863,90510.0,90509.0,1.8e-07]
[1768021905573,0.05180845,90510.0,90509.0,1.8e-07]
[1768021912629,0.05171827,90510.0,90509.0,1.8e-07]
[1768021915385,0.05162808,90510.0,90509.0,1.8e-07]
[1768021919488,0.02212,90510.0,90509.0,1.8e-07]
[1768021919690,0.02202981,90510.0,90509.0,1.8e-07]
[1768021920645,0.05202981,90510.0,90509.0,1.8e-07]
[1768021922295,0.0004,90516.0,90511.0,0.05739425]
[1768021922494,0.03,90514.0,90509.0,0.0110488]
[1768021922873,0.03,90514.0,90509.0,1.8e-07]
[1768021923246,0.03,90514.0,90509.0,0.0110488]
[1768021924135,0.03,90514.0,90510.0,0.0110485]
[1768021924928,0.03,90514.0,90511.0,0.01104838]
[1768021925375,0.03,90512.0,90511.0,0.01104838]
[1768021926904,0.03,90512.0,90509.0,0.06629161]
[1768021926905,0.03,90512.0,90509.0,1.8e-07]
[1768021927139,0.03,90512.0,90509.0,0.0110488]
[1768021927331,0.03,90511.0,90509.0,0.0110488]
[1768021927514,0.05212,90511.0,90509.0,0.0110488]
[1768021927713,0.05212,90511.0,90509.0,0.06629178]
[1768021928538,0.00049351,90516.0,90511.0,0.01104838]
[1768021928736,0.03,90514.0,90509.0,0.0110488]
[1768021929044,0.03,90514.0,90509.0,1.8e-07]
[1768021929263,0.03,90514.0,90511.0,0.01104838]
[1768021929463,0.03,90514.0,90510.0,0.0110485]
[1768021930484,0.05212,90513.0,90510.0,0.0110485]
[1768021932041,0.03,90513.0,90510.0,0.0110485]
[1768021932248,0.00049351,90516.0,90510.0,0.0110485]
[1768021932249,0.00049351,90516.0,90513.0,0.01104813]
[1768021932456,0.03,90514.0,90513.0,0.01104813]
[1768021933052,0.00049351,90516.0,90513.0,0.01865252]
[1768021933255,0.02212,90514.0,90513.0,0.11292921]
[1768021933503,0.00049351,90516.0,90515.0,0.05523946]
[1768021933702,0.05261351,90516.0,90515.0,0.05523946]
[1768021933932,0.05261351,90516.0,90513.0,0.11292921]
[1768021934941,0.05261351,90516.0,90514.0,0.05524002]
[1768021937661,0.05261351,90516.0,90513.0,0.05768853]
[1768021938758,0.05261351,90516.0,90513.0,0.1129291]
[1768021938965,0.05261351,90516.0,90513.0,0.05768853]
[1768021939311,0.05261351,90516.0,90514.0,0.10188047]
[1768021939921,0.05261351,90516.0,90514.0,0.0466404]
[1768021940218,0.05261351,90516.0,90514.0,0.10187989]
[1768021940634,0.0004,90519.0,90516.0,0.01104777]
[1768021940851,0.03,90517.0,90516.0,0.01104777]
[1768021941026,0.05212,90517.0,90516.0,0.06628653]
[1768021941228,0.05212,90517.0,90516.0,0.01104777]
[1768021943670,0.05212,90517.0,90514.0,0.05768841]
[1768021944076,0.05212,90517.0,90514.0,0.11292819]
[1768021944553,0.05212,90517.0,90515.0,0.05523926]
[1768021945001,0.03,90516.0,90515.0,0.10187966]
[1768021945211,0.03,90516.0,90515.0,0.0466404]
[1768021945963,0.03,90516.0,90513.0,0.11292888]
[1768021947971,0.03,90516.0,90514.0,0.0466404]
[1768021949179,0.03,90516.0,90513.0,0.01104813]
[1768021949874,0.03,90516.0,90512.0,0.01104825]
[1768021952421,0.000999,90512.0,90509.0,0.0110488]
[1768021952625,0.02212,90517.0,90512.0,0.02999999]
[1768021952835,0.04584718,90516.0,90513.0,0.000999]
[1768021953035,0.02212,90517.0,90513.0,0.000999]
[1768021953855,0.03,90516.0,90513.0,0.000999]
[1768021955410,0.03,90516.0,90503.0,0.07963878]
[1768021955411,0.04508351,90515.0,90503.0,0.07963878]
[1768021955605,0.03,90506.0,90496.0,0.15925021]
[1768021955844,0.04508351,90507.0,90496.0,0.15925021]
[1768021955845,0.04508351,90507.0,90502.0,0.03]
[1768021956052,0.02212,90506.0,90497.0,0.01105009]
[1768021956237,0.02212,90506.0,90498.0,0.03315424]
[1768021956412,0.02212,90506.0,90498.0,0.0442042]
[1768021956869,0.02212,90506.0,90498.0,0.01104996]
[1768021957032,0.02212,90506.0,90499.0,0.03315424]
[1768021958262,0.02207911,90506.0,90499.0,0.03315424]
[1768021958874,0.03,90505.0,90503.0,0.01104935]
[1768021960974,0.03,90505.0,90501.0,0.0110496]
[1768021961184,0.03,90505.0,90502.0,0.01104947]
[1768021961378,0.03,90505.0,90501.0,0.0110496]
[1768021961580,0.03,90505.0,90502.0,0.01104947]
[1768021963785,0.03,90505.0,90503.0,0.05524668]
[1768021964461,0.03,90505.0,90502.0,0.06629671]
[1768021967010,0.03,90505.0,90503.0,0.05524678]
[1768021967213,0.03,90505.0,90502.0,0.06629671]
[1768021970654,0.03,90505.0,90502.0,0.01104947]
[1768021971313,0.03,90505.0,90501.0,0.0110496]
[1768021971515,0.03,90505.0,90501.0,0.01078838]
[1768021972111,0.03,90505.0,90501.0,0.01050192]
[1768021972312,0.03,90505.0,90499.0,0.01104984]
[1768021972517,0.03,90505.0,90500.0,0.01104972]
[1768021973087,0.03,90505.0,90499.0,0.01104984]
[1768021973513,0.03,90505.0,90500.0,0.01104972]
[1768021973860,0.03,90505.0,90499.0,0.01104984]
[1768021975522,0.03,90505.0,90499.0,0.01114335]
[1768021975883,0.03,90505.0,90499.0,9.351e-05]
[1768021976343,0.07925231,90505.0,90499.0,9.351e-05]
[1768021976562,0.07925231,90500.0,90499.0,9.351e-05]
[1768021977785,0.07925231,90505.0,90500.0,0.01104972]
[1768021977987,0.03,90501.0,90500.0,0.01104972]
[1768021979028,0.03,90500.0,90499.0,0.01114335]
[1768021979911,0.03,90505.0,90500.0,0.01104972]
[1768021980653,0.03,90505.0,90499.0,0.01114335]
[1768021980956,0.03,90505.0,90500.0,0.01104972]
[1768021983834,0.03,90505.0,90499.0,0.01114335]
[1768021984291,0.07731725,90505.0,90499.0,0.01114335]
[1768021985023,0.07731725,90505.0,90499.0,9.351e-05]
[1768021985263,0.03,90501.0,90499.0,9.351e-05]
[1768021989521,0.03,90500.0,90499.0,0.01114335]
[1768021989759,0.03,90500.0,90499.0,9.351e-05]
[1768021989962,0.03,90500.0,90499.0,4.843e-05]
[1768021991739,0.03,90503.0,90499.0,4.843e-05]
[1768021991950,0.07731725,90503.0,90499.0,4.843e-05]
[1768021992827,0.07731725,90503.0,90499.0,0.01109827]
[1768021993011,0.07731725,90503.0,90499.0,4.843e-05]
[1768021993639,0.07731725,90503.0,90499.0,0.01109827]
[1768021996321,0.07731725,90503.0,90500.0,0.01104972]
[1768021996500,0.07731725,90503.0,90499.0,0.01109827]
[1768021997308,0.07731725,90503.0,90500.0,0.01104972]
[1768021998663,0.03,90505.0,90500.0,0.01104972]
[1768021998881,0.07731725,90505.0,90500.0,0.01104972]
[1768021999051,0.03,90503.0,90500.0,0.01104972]
[1768022000565,0.03,90502.0,90500.0,0.01104972]
[1768022002234,0.03,90502.0,90499.0,0.01109827]
[1768022002579,0.03,90501.0,90499.0,0.01109827]
[1768022003367,0.03,90505.0,90500.0,0.01104972]
[1768022004011,0.07731725,90505.0,90500.0,0.01104972]
[1768022005172,0.03,90505.0,90500.0,0.01104972]
[1768022007256,0.03,90505.0,90501.0,0.0110496]
[1768022007391,0.03,90505.0,90500.0,0.01104972]
[1768022007747,0.03,90505.0,90501.0,0.0110496]
[1768022008392,0.03,90505.0,90500.0,0.01104972]
[1768022009052,0.03,90505.0,90502.0,0.01104947]
[1768022011920,0.03,90505.0,90502.0,0.06629642]
[1768022012126,0.03,90505.0,90502.0,0.06629686]
[1768022015279,0.03,90505.0,90502.0,0.01104947]
[1768022015851,0.03,90505.0,90502.0,0.06629683]
[1768022019140,0.03,90505.0,90502.0,0.01104947]
[1768022019889,0.03,90505.0,90501.0,0.0110496]
[1768022021330,0.02207911,90506.0,90502.0,0.01104947]
[1768022022365,0.02207911,90506.0,90503.0,0.01104935]
[1768022023073,0.02207911,90506.0,90502.0,0.01104947]
[1768022023453,0.02207911,90506.0,90500.0,0.01104972]
[1768022023781,0.02207911,90506.0,90501.0,0.0110496]
[1768022023994,0.02207911,90506.0,90500.0,0.01104972]
[1768022025104,0.02207911,90506.0,90499.0,0.01109827]
[1768022025654,0.02207911,90506.0,90500.0,0.01104972]
[1768022025948,0.02207911,90506.0,90499.0,0.04425412]
[1768022026241,0.02207911,90506.0,90500.0,0.01104972]
[1768022027774,0.02207911,90506.0,90499.0,0.04425412]
[1768022028267,0.02207911,90506.0,90501.0,0.0110496]
[1768022028451,0.02198963,90506.0,90501.0,0.0110496]
[1768022029436,0.02198963,90506.0,90500.0,0.01104972]
[1768022030088,0.02198963,90506.0,90499.0,0.04425412]
[1768022030291,0.02198963,90506.0,90500.0,0.01104972]
[1768022032188,0.02198963,90506.0,90499.0,0.01109827]
[1768022032384,0.02198963,90506.0,90500.0,0.01104972]
[1768022035398,0.02198963,90506.0,90502.0,0.01104947]
[1768022035593,0.02198963,90506.0,90501.0,0.0110496]
[1768022035936,0.02198963,90506.0,90502.0,0.01104947]
[1768022036132,0.02198963,90506.0,90500.0,0.01104972]
[1768022036335,0.02198963,90506.0,90501.0,0.0110496]
[1768022036563,0.02198963,90506.0,90502.0,0.01104947]
[1768022036759,0.02198963,90506.0,90503.0,0.01104935]
[1768022036990,0.02198963,90506.0,90503.0,0.01100428]
[1768022037805,0.02198963,90506.0,90503.0,0.01104935]
[1768022038007,0.02198963,90506.0,90502.0,0.01104947]
[1768022038362,0.02198963,90506.0,90503.0,0.01104935]
[1768022038755,0.02198963,90506.0,90502.0,0.01104947]
[1768022039317,0.02198963,90506.0,90502.0,0.01098133]
[1768022040059,0.02198963,90506.0,90503.0,0.01104935]
[1768022040640,0.02198963,90506.0,90502.0,0.01098133]
[1768022040843,0.02198963,90506.0,90503.0,0.01104935]
[1768022042722,0.02198963,90506.0,90503.0,0.0662961]
[1768022042938,0.02198963,90506.0,90503.0,0.06629606]
[1768022046869,0.02198963,90506.0,90504.0,0.05524614]
[1768022047073,0.02198963,90506.0,90503.0,0.06629502]
[1768022047284,0.02099063,90506.0,90505.0,0.05524556]
[1768022048441,0.05212,90508.0,90507.0,0.01104886]
[1768022050293,0.05212,90508.0,90505.0,0.06629452]
[1768022050923,0.05212,90508.0,90505.0,0.06629421]
[1768022052944,0.05212,90508.0,90505.0,0.01104911]
[1768022053175,0.05212,90508.0,90506.0,0.0552445]
[1768022056082,0.03,90507.0,90506.0,0.0552445]
[1768022056282,0.05212,90507.0,90506.0,0.0552445]
[1768022058013,0.0004,90519.0,90510.0,0.0110485]
[1768022058215,0.02212,90518.0,90510.0,0.0110485]
[1768022059142,0.03,90517.0,90510.0,0.0110485]
[1768022059947,0.03,90517.0,90511.0,0.01104838]
[1768022060284,0.03,90517.0,90510.0,0.0110485]
[1768022061626,0.03,90517.0,90511.0,0.01104838]
[1768022063730,0.03,90513.0,90510.0,0.0110485]
[1768022063899,0.07879263,90511.0,90510.0,0.0110485]
[1768022064269,0.03,90511.0,90510.0,0.0110485]
[1768022064862,0.03,90517.0,90510.0,0.0110485]
[1768022065061,0.07879263,90517.0,90511.0,0.01104838]
[1768022065269,0.03,90517.0,90511.0,0.01104838]
[1768022066284,0.03,90517.0,90512.0,0.01104825]
[1768022066797,0.03,90517.0,90511.0,0.01104838]
[1768022068189,0.03,90517.0,90512.0,0.01104825]
[1768022068413,0.03,90517.0,90511.0,0.01104838]
[1768022068620,0.03,90517.0,90510.0,0.0110485]
[1768022068776,0.03,90517.0,90511.0,0.01104838]
[1768022071700,0.03,90516.0,90513.0,0.01104813]
[1768022071855,0.05212,90516.0,90514.0,0.05523952]
[1768022072038,0.03,90516.0,90515.0,0.04706388]
[1768022072581,0.05212,90516.0,90513.0,0.11335264]
[1768022072783,0.05212,90516.0,90513.0,0.05811201]
[1768022073325,0.05212,90515.0,90513.0,0.11335261]
[1768022077316,0.0004,90519.0,90516.0,0.01104777]
[1768022077477,0.01662,90518.0,90516.0,0.05947062]
[1768022077689,0.01652405,90518.0,90516.0,0.05947062]
[1768022078028,0.01652405,90518.0,90516.0,0.0110027]
[1768022078861,0.01652405,90518.0,90515.0,0.01104789]
[1768022079387,0.01652405,90518.0,90515.0,0.0662872]
[1768022080244,0.01652405,90518.0,90517.0,0.05523824]
[1768022080829,0.01652405,90518.0,90516.0,0.05523873]
[1768022081030,0.0004,90519.0,90517.0,0.0552381]
[1768022081245,0.05212,90518.0,90517.0,0.0552381]
[1768022090798,0.0004,90519.0,90517.0,0.0552381]
[1768022090799,0.0004,90519.0,90518.0,0.05523763]
[1768022093104,0.02252,90519.0,90518.0,0.05523763]
[1768022094580,0.0004,90519.0,90518.0,0.05523763]
[1768022094813,0.02252,90519.0,90518.0,0.05523763]
[1768022095585,0.0004,90526.0,90523.0,0.01104691]
[1768022095902,0.0004,90526.0,90520.0,0.05640243]
[1768022095903,0.02212,90525.0,90522.0,0.01104703]
[1768022096108,0.02212,90525.0,90521.0,0.01104716]
[1768022096705,0.02212,90525.0,90522.0,0.01104703]
[1768022097860,0.02212,90525.0,90521.0,0.01104716]
[1768022098656,0.02212,90525.0,90522.0,0.01104703]
[1768022098862,0.02252,90526.0,90522.0,0.01104703]
[1768022100079,0.02252,90526.0,90523.0,0.01104691]
[1768022100865,0.03,90525.0,90523.0,0.01104691]
[1768022102695,0.03,90525.0,90520.0,0.03356728]
[1768022102902,0.03,90525.0,90521.0,0.01104716]
[1768022103314,0.03,90525.0,90522.0,0.01104703]
[1768022103831,0.03,90525.0,90520.0,0.02252]
[1768022104037,0.03,90525.0,90521.0,0.01104716]
[1768022104746,0.03,90525.0,90522.0,0.01104703]
[1768022104987,0.03,90525.0,90521.0,0.01104716]
[1768022105203,0.03,90524.0,90521.0,0.01104716]
[1768022106146,0.03,90523.0,90522.0,0.01104703]
[1768022106395,0.03,90523.0,90520.0,0.03356728]
[1768022107144,0.03,90522.0,90521.0,0.01104716]
[1768022107360,0.03,90522.0,90520.0,0.03356728]
[1768022108124,0.03,90525.0,90520.0,0.03356728]
[1768022108323,0.000999,90520.0,90517.0,0.05666444]
[1768022108560,0.03,90521.0,90520.0,0.00032726]
[1768022109538,0.03,90525.0,90520.0,0.00032726]
[1768022111672,0.02252,90526.0,90518.0,0.02212]
[1768022111673,0.04510672,90519.0,90518.0,0.02212]
[1768022113184,0.03,90525.0,90514.0,0.01104801]